bitfinex-derivatives/quotes_SOLF0:USTF0_20250202
["timestamp","ask_amount","ask_price","bid_price","bid_amount"]
[1738536741502,0.03565061,199.68,199.65,0.03295217]
[1738536755817,5.04545061,199.68,199.65,0.03295217]
[1738536756015,0.03565061,199.68,199.65,0.03295217]
[1738536756818,0.03565061,199.68,199.56,16.25107649]
[1738536757320,21.25977649,199.73,199.56,16.25107649]
[1738536757514,5.0087,199.73,199.56,16.25107649]
[1738536757716,16.25107649,199.76,199.56,16.25107649]
[1738536758016,5.0088,199.72,199.56,16.25107649]
[1738536758221,0.03671872,199.68,199.64,0.03582177]
[1738536762019,5.04641872,199.68,199.64,0.03582177]
[1738536762421,0.03671872,199.68,199.64,0.03582177]
[1738536763619,16.28779521,199.68,199.64,0.03582177]
[1738536765624,5.0101,199.67,199.64,0.03582177]
[1738536766021,16.28779521,199.68,199.64,0.03582177]
[1738536766221,16.28779521,199.68,199.55,9.1135]
[1738536766620,16.25107649,199.68,199.55,9.1135]
[1738536767326,0.03283218,199.63,199.6,0.03730606]
[1738536768932,5.0113,199.62,199.6,0.03730606]
[1738536770924,0.03283218,199.63,199.6,0.03730606]
[1738536771228,5.0118,199.6,199.47,6.2059]
[1738536771532,16.25107649,199.62,199.47,6.2059]
[1738536771731,5.0121,199.59,199.47,6.2059]
[1738536772231,0.03719449,199.55,199.47,6.2059]
[1738536773431,0.03719449,199.55,199.45,3.1041]
[1738536773829,0.03719449,199.55,199.44,3.2539]
[1738536774025,16.25107649,199.53,199.39,5.9934]
[1738536774334,16.25107649,199.5,199.35,97.36977673]
[1738536774629,16.25107649,199.47,199.35,81.11870024]
[1738536775137,5.0171,199.39,199.35,81.11870024]
[1738536775727,0.03658525,199.39,199.29,81.11870024]
[1738536775924,16.25107649,199.37,199.29,81.11870024]
[1738536776324,5.019,199.32,199.29,81.11870024]
[1738536776925,16.25107649,199.31,199.29,72.40380024]
[1738536777133,21.27027649,199.31,199.29,69.24780024]
[1738536777633,5.0198,199.28,199.27,65.7711212]
[1738536777830,21.27087649,199.28,199.27,15.77892333]
[1738536778230,5.0212,199.23,199.07,5.025]
[1738536778431,16.25107649,199.22,199.05,16.25107649]
[1738536778628,16.25107649,199.22,198.97,167.92341794]
[1738536778629,16.25107649,199.18,199.01,16.25107649]
[1738536779034,0.03785821,199.15,199.01,16.25107649]
[1738536779329,16.25107649,199.09,198.97,167.92341794]
[1738536779726,0.03424112,199.05,198.97,167.92341794]
[1738536780434,0.03424112,199.05,198.93,16.25107649]
[1738536780629,0.03424112,199.05,198.91,12.7524]
[1738536780630,0.03424112,199.05,198.94,26.16297197]
[1738536780828,1.00431856,199.14,198.98,26.16297197]
[1738536781130,31.18457197,199.21,199.01,5.0264]
[1738536781326,31.18457197,199.21,198.98,26.16297197]
[1738536781733,6.26842633,199.2,198.98,26.16297197]
[1738536782235,0.03714801,199.11,199.08,0.03487127]
[1738536782736,6.26842633,199.2,199.0,5.0266]
[1738536783036,0.03768991,199.11,199.08,0.03618599]
[1738536783535,11.29032633,199.2,198.98,26.16297197]
[1738536783735,0.03820608,199.11,199.08,0.03678532]
[1738536784236,5.0225,199.18,198.99,5.027]
[1738536784536,0.03433466,199.11,199.08,0.03649381]
[1738536784931,26.16297197,199.21,198.98,26.16297197]
[1738536785128,0.03788902,199.11,199.08,0.03808939]
[1738536785335,0.03788902,199.11,198.98,26.16297197]
[1738536785533,5.0229,199.16,198.98,31.19017197]
[1738536785932,26.16297197,199.21,198.99,2.9362]
[1738536786335,5.0232,199.15,198.99,2.9362]
[1738536786536,26.16297197,199.21,198.99,2.9362]
[1738536786739,0.03522775,199.12,198.99,2.9362]
[1738536787238,5.0234,199.14,198.99,2.9362]
[1738536787537,0.03387825,199.07,198.99,2.9362]
[1738536787734,0.03387825,199.07,198.94,26.16297197]
[1738536787938,0.03387825,199.07,198.94,3.2468]
[1738536788240,26.16297197,199.13,198.94,3.2468]
[1738536788439,0.033604,199.02,198.94,3.2468]
[1738536789133,5.060004,199.02,198.94,3.2468]
[1738536789539,0.033604,199.02,198.94,3.2468]
[1738536790150,0.033604,199.02,198.91,9.5063]
[1738536792235,5.059904,199.02,198.91,9.5063]
[1738536792437,0.033604,199.02,198.91,9.5063]
[1738536793243,5.0279,198.96,198.84,26.16297197]
[1738536793445,5.0279,198.96,198.85,2.9843]
[1738536793839,0.0334713,198.92,198.85,2.9843]
[1738536795838,0.0334713,198.92,198.84,9.0889]
[1738536796043,0.0334713,198.92,198.76,29.15287197]
[1738536796339,5.0623713,198.92,198.76,38.33747197]
[1738536796545,26.16297197,198.97,198.76,38.33747197]
[1738536796847,5.0296,198.89,198.76,38.33747197]
[1738536797045,0.03634676,198.86,198.76,38.33747197]
[1738536797244,0.03634676,198.86,198.76,12.1745]
[1738536797647,0.03634676,198.86,198.66,26.16297197]
[1738536797848,0.03634676,198.86,198.71,6.1472]
[1738536798145,5.0315,198.82,198.71,3.1573]
[1738536798340,26.16297197,198.8,198.62,26.16297197]
[1738536798643,26.19714518,198.8,198.61,6.0453]
[1738536799043,5.0335,198.74,198.61,6.0453]
[1738536799246,26.16297197,198.76,198.61,6.0453]
[1738536799548,0.03617154,198.72,198.61,2.9646]
[1738536799747,26.16297197,198.71,198.61,2.9646]
[1738536800048,26.16297197,198.71,198.45,99.44]
[1738536800049,26.16297197,198.63,198.22,26.16297197]
[1738536800239,1.00694794,198.62,198.34,12.3002]
[1738536800445,5.0379,198.57,198.45,3.0807]
[1738536800647,1.00694794,198.62,198.45,3.0807]
[1738536800943,5.0382,198.56,198.39,31.20517197]
[1738536801147,26.16297197,198.59,198.39,26.16297197]
[1738536801348,0.03701601,198.55,198.39,26.16297197]
[1738536801543,0.03701601,198.55,198.4,5.0419]
[1738536801755,1.00715077,198.58,198.39,26.16297197]
[1738536802049,0.03355177,198.49,198.39,31.20517197]
[1738536802250,0.03355177,198.49,198.35,29.24367197]
[1738536802549,0.03355177,198.49,198.36,5.0429]
[1738536802747,5.0384,198.55,198.36,5.0429]
[1738536802945,0.03534112,198.44,198.35,29.24367197]
[1738536803450,0.03534112,198.44,198.35,3.0807]
[1738536803745,0.03534112,198.44,198.34,9.2195]
[1738536804952,5.0412,198.42,198.34,9.2195]
[1738536805149,26.16297197,198.43,198.28,2.9982]
[1738536805446,5.0417,198.4,198.28,2.9982]
[1738536805750,0.03347155,198.37,198.28,2.9982]
[1738536806651,0.03347155,198.37,198.24,8.9351]
[1738536807150,26.16297197,198.31,198.11,26.16297197]
[1738536807754,26.16297197,198.31,198.13,5.0482]
[1738536807952,26.16297197,198.31,198.07,35.04977197]
[1738536808151,26.16297197,198.31,198.11,26.16297197]
[1738536808350,0.03858592,198.24,198.07,8.8868]
[1738536808952,26.16297197,198.26,198.07,8.8868]
[1738536809453,0.03489478,198.17,198.07,8.8868]
[1738536810246,5.08239478,198.17,198.07,8.8868]
[1738536810451,0.03489478,198.17,197.97,26.16297197]
[1738536810644,26.16297197,198.14,197.92,26.16297197]
[1738536810848,5.0488,198.12,197.94,5.0532]
[1738536811252,26.16297197,198.22,197.9,12.8118]
[1738536811253,26.16297197,198.1,197.9,12.8118]
[1738536811452,0.03543807,198.05,197.9,12.8118]
[1738536811648,26.16297197,197.96,197.74,26.16297197]
[1738536811842,6.26,198.07,197.56,26.16297197]
[1738536811843,26.16297197,197.92,197.7,26.16297197]
[1738536812043,26.16297197,197.96,197.74,26.16297197]
[1738536812250,0.0337434,197.87,197.74,26.16297197]
[1738536812446,26.16297197,198.04,197.81,5.0564]
[1738536812749,26.16297197,198.04,197.78,26.16297197]
[1738536812750,42.96902904,198.09,197.85,42.96902904]
[1738536812953,1.00969305,198.08,197.89,42.96902904]
[1738536813149,1.00969305,198.08,197.9,3.2167]
[1738536813952,0.03830456,198.01,197.97,0.03282336]
[1738536814158,1.00969305,198.08,197.97,0.03282336]
[1738536814455,42.96902904,198.17,197.97,43.0018524]
[1738536814651,42.96902904,198.21,198.01,42.96902904]
[1738536814949,48.01452904,198.25,198.04,5.0506]
[1738536815154,48.01452904,198.25,198.05,3.1394]
[1738536815348,42.96902904,198.25,198.05,3.1394]
[1738536815652,0.0343875,198.16,198.13,5.08555964]
[1738536815845,42.96902904,198.33,198.13,0.03715964]
[1738536816046,0.92705993,198.32,198.13,0.03715964]
[1738536816245,48.01242904,198.33,198.12,5.0485]
[1738536816652,49.02084934,198.33,198.12,5.0485]
[1738536816946,43.97744934,198.33,198.13,42.96902904]
[1738536817146,0.03192086,198.24,198.21,0.0368771]
[1738536817553,1.0084203,198.33,198.21,0.0368771]
[1738536817748,1.0084203,198.33,198.13,42.96902904]
[1738536818153,43.97744934,198.33,198.13,42.96902904]
[1738536818351,43.97744934,198.33,198.09,42.96902904]
[1738536818556,42.96902904,198.29,198.09,42.96902904]
[1738536818757,42.96902904,198.25,198.05,46.10842904]
[1738536819049,0.03519632,198.23,198.19,0.00273854]
[1738536819351,5.0465,198.21,198.19,0.00273854]
[1738536819558,5.0465,198.21,198.06,3.0818]
[1738536819754,42.96902904,198.21,198.05,3.1394]
[1738536819952,42.96902904,198.17,198.05,3.1394]
[1738536820354,5.0488,198.12,197.95,5.0529]
[1738536820660,43.002641,198.13,198.09,0.03635741]
[1738536820855,42.96902904,198.13,197.94,3.1802]
[1738536821055,42.96902904,198.09,197.93,3.1196]
[1738536821256,42.96902904,198.05,197.79,3.1802]
[1738536821456,5.0522,197.99,197.81,5.0564]
[1738536821652,42.96902904,197.97,197.79,6.2998]
[1738536821965,5.0538,197.92,197.76,5.0577]
[1738536822149,42.96902904,197.93,197.7,42.96902904]
[1738536822350,42.96902904,197.89,197.86,0.03228989]
[1738536822557,5.0552,197.87,197.86,0.03228989]
[1738536823059,85.93805808,197.89,197.62,42.96902904]
[1738536823260,42.96902904,197.8,197.63,3.0402]
[1738536823463,42.96902904,197.8,197.61,9.312]
[1738536823858,5.0581,197.75,197.74,7.992e-05]
[1738536824052,5.0581,197.75,197.61,9.312]
[1738536824053,42.96902904,197.76,197.61,9.312]
[1738536824257,42.96902904,197.7,197.45,42.96902904]
[1738536824454,42.96902904,197.7,197.51,5.9673]
[1738536824964,42.96902904,197.66,197.46,6.2274]
[1738536825261,43.00267305,197.62,197.59,3.202e-05]
[1738536825463,42.96902904,197.6,197.34,42.96902904]
[1738536825760,5.0653,197.47,197.3,42.96902904]
[1738536825967,42.96902904,197.49,197.26,42.96902904]
[1738536826462,5.0653,197.47,197.28,5.07]
[1738536826757,0.03370157,197.39,197.26,42.96902904]
[1738536827162,42.96902904,197.49,197.29,5.0697]
[1738536827357,42.96902904,197.49,197.26,42.96902904]
[1738536827663,42.96902904,197.57,197.34,42.96902904]
[1738536827855,1.01235067,197.56,197.42,42.96902904]
[1738536828160,42.96902904,197.78,197.46,42.96902904]
[1738536828353,42.96902904,197.76,197.5,42.96902904]
[1738536828759,42.96902904,197.8,197.58,42.96902904]
[1738536829065,42.96902904,197.88,197.66,42.96902904]
[1738536829260,42.96902904,197.92,197.76,5.0577]
[1738536829460,42.96902904,197.92,197.77,3.1101]
[1738536829759,50.7848104,197.96,197.77,3.1101]
[1738536829760,42.96902904,197.96,197.77,3.1101]
[1738536829966,25.07370533,197.92,197.77,3.1101]
[1738536830165,25.07370533,197.92,197.78,45.98402904]
[1738536830563,4.513e-05,197.88,197.85,0.03559058]
[1738536830767,50.14741067,197.94,197.85,0.03559058]
[1738536831260,50.14741067,197.94,197.89,5.0545]
[1738536831461,20.04031067,197.94,197.86,42.96902904]
[1738536831657,71.91019538,197.96,197.86,42.96902904]
[1738536831861,64.15979538,197.96,197.86,142.98902904]
[1738536832058,51.21049538,197.96,197.86,142.98902904]
[1738536832262,38.65739538,197.96,197.9,42.96902904]
[1738536832660,42.96902904,198.12,197.9,42.96902904]
[1738536833167,42.96902904,198.04,197.82,42.96902904]
[1738536833562,5.0514,198.02,197.82,42.96902904]
[1738536833768,0.03241034,197.95,197.91,0.03486754]
[1738536836766,0.03241034,197.95,197.91,5.08876754]
[1738536836967,0.03241034,197.95,197.91,0.03486754]
[1738536840977,0.03241034,197.95,197.8,5.0567]
[1738536841166,0.03241034,197.95,197.78,42.96902904]
[1738536841376,3.0408,198.03,197.82,42.96902904]
[1738536841565,49.93656919,198.11,197.86,42.96902904]
[1738536841769,3.1362,198.1,197.86,42.96902904]
[1738536841965,3.1362,198.1,198.0,5.0516]
[1738536842169,0.0357607,198.0,197.96,0.03206686]
[1738536842471,6.96754015,198.11,197.96,0.03206686]
[1738536842666,1.00954015,198.11,197.94,142.98902904]
[1738536843071,1.00954015,198.11,197.98,42.96902904]
[1738536843273,1.00954015,198.11,198.01,5.0512]
[1738536843572,1.00954015,198.11,197.98,42.96902904]
[1738536843774,0.03765156,198.06,198.03,0.03377245]
[1738536844079,6.2754,198.31,198.03,43.00280149]
[1738536844275,42.96902904,198.29,198.03,43.00280149]
[1738536844578,42.96902904,198.29,198.07,42.96902904]
[1738536844776,6.2754,198.31,198.07,42.96902904]
[1738536844972,6.2754,198.31,198.0,42.96902904]
[1738536844973,6.2754,198.31,198.11,42.96902904]
[1738536845468,0.03493234,198.21,198.17,0.03243312]
[1738536845976,6.2754,198.31,198.14,5.048]
[1738536846274,6.2754,198.31,198.11,42.96902904]
[1738536846475,0.03315142,198.21,198.17,5.08591252]
[1738536846675,3.2286,198.32,198.17,5.08591252]
[1738536846676,42.96902904,198.37,198.17,0.03851252]
[1738536846878,5.0428,198.35,198.15,5.0477]
[1738536847083,5.0428,198.35,198.11,42.96902904]
[1738536847977,42.96902904,198.37,198.15,42.96902904]
[1738536848281,0.03248299,198.25,198.21,0.03736016]
[1738536848481,42.96902904,198.41,198.21,0.03736016]
[1738536848675,5.9899,198.43,198.21,0.03736016]
[1738536848871,5.9899,198.43,198.23,42.96902904]
[1738536849274,5.9899,198.43,198.27,42.96902904]
[1738536849471,5.9899,198.43,198.3,5.044]
[1738536849682,5.9899,198.43,198.27,42.96902904]
[1738536849887,6.3736,198.53,198.33,0.03478928]
[1738536850379,6.3736,198.53,198.31,42.96902904]
[1738536850880,5.0386,198.52,198.31,42.96902904]
[1738536851075,5.0386,198.52,198.35,42.96902904]
[1738536851279,0.03334483,198.44,198.4,0.03617286]
[1738536851880,42.96902904,198.59,198.39,42.96902904]
[1738536852077,6.4237,198.61,198.39,42.96902904]
[1738536852281,6.4237,198.61,198.43,42.96902904]
[1738536852778,0.03225405,198.52,198.48,0.03786976]
[1738536852974,0.03225405,198.52,198.48,5.07726976]
[1738536853174,42.96902904,198.67,198.48,0.03786976]
[1738536853483,42.96902904,198.71,198.47,42.96902904]
[1738536854184,42.96902904,198.67,198.47,42.96902904]
[1738536854484,2.9981,198.66,198.47,42.96902904]
[1738536854681,0.03263113,198.61,198.57,0.03784943]
[1738536854983,42.96902904,198.59,198.33,42.96902904]
[1738536855183,6.4113,198.58,198.33,42.96902904]
[1738536855485,6.4113,198.58,198.42,42.96902904]
[1738536855678,3.0593,198.65,198.42,42.96902904]
[1738536855880,2.9981,198.66,198.46,42.96902904]
[1738536856273,0.03367266,198.55,198.52,0.03847135]
[1738536856584,5.0335,198.72,198.53,5.0381]
[1738536856775,42.96902904,198.74,198.5,42.96902904]
[1738536856976,42.96902904,198.82,198.58,42.96902904]
[1738536857180,42.96902904,198.86,198.62,42.96902904]
[1738536857375,12.6376,198.87,198.66,42.96902904]
[1738536857784,0.03619605,198.76,198.72,0.03609288]
[1738536858183,12.6376,198.87,198.66,42.96902904]
[1738536858381,42.96902904,198.9,198.66,42.96902904]
[1738536858582,0.0366546,198.76,198.72,0.03701712]
[1738536859077,42.96902904,198.9,198.66,42.96902904]
[1738536859288,42.96902904,198.9,198.72,0.03530093]
[1738536859474,0.03723047,198.76,198.72,0.03530093]
[1738536859678,42.96902904,198.9,198.66,42.96902904]
[1738536859875,42.96902904,198.85,198.62,42.96902904]
[1738536860081,0.03405416,198.76,198.72,0.03233897]
[1738536860282,0.03405416,198.76,198.58,42.96902904]
[1738536860479,42.96902904,198.81,198.58,42.96902904]
[1738536860785,5.0315,198.8,198.62,48.00492904]
[1738536861178,6.429,198.84,198.62,42.96902904]
[1738536861483,7.379e-05,198.73,198.7,42.96902904]
[1738536861680,42.96902904,199.1,198.7,42.96902904]
[1738536861681,42.96902904,198.96,198.7,42.96902904]
[1738536861888,42.96902904,199.0,198.79,5.0315]
[1738536862079,42.96902904,199.0,198.76,149.36902904]
[1738536862684,42.96902904,199.0,198.76,142.64902904]
[1738536862887,0.03236594,198.89,198.85,0.03259498]
[1738536863189,0.03236594,198.89,198.76,99.68]
[1738536863389,5.0295,198.88,198.76,99.68]
[1738536863584,42.96902904,198.96,198.76,99.68]
[1738536863789,0.92406422,198.95,198.76,99.68]
[1738536864191,42.96902904,198.96,198.76,99.68]
[1738536864486,42.96902904,198.92,198.76,99.68]
[1738536864686,5.03,198.86,198.84,0.03676742]
[1738536864988,0.03638886,198.87,198.76,99.68]
[1738536865389,42.96902904,198.92,198.66,42.96902904]
[1738536865795,5.0303,198.85,198.66,42.96902904]
[1738536866089,42.96902904,198.92,198.66,42.96902904]
[1738536866284,0.03424677,198.81,198.77,0.03685523]
[1738536866687,0.03424677,198.81,198.66,42.96902904]
[1738536866688,42.96902904,198.92,198.66,42.96902904]
[1738536866991,42.96902904,199.0,198.77,43.00545471]
[1738536867392,42.96902904,199.0,198.83,5.0305]
[1738536867593,42.96902904,199.0,198.77,42.96902904]
[1738536868598,0.03426696,198.89,198.86,0.03827611]
[1738536869097,42.96902904,199.0,198.77,42.96902904]
[1738536869399,0.03369299,198.89,198.86,0.03793672]
[1738536869786,42.96902904,199.0,198.77,42.96902904]
[1738536869993,5.0277,198.95,198.79,5.0315]
[1738536870294,0.03779335,198.89,198.86,0.03409563]
[1738536870698,3.2161,199.02,198.85,5.0301]
[1738536870898,3.2161,199.02,198.81,42.96902904]
[1738536871195,0.0320498,198.89,198.86,0.0363754]
[1738536871397,3.2161,199.02,198.87,5.0295]
[1738536871593,3.2161,199.02,198.85,42.96902904]
[1738536871898,3.2161,199.02,198.87,5.0295]
[1738536872397,3.1787,199.03,198.85,42.96902904]
[1738536872796,0.0355035,198.96,198.93,0.03419336]
[1738536873194,5.026,199.02,198.93,0.03419336]
[1738536873500,3.1787,199.03,198.93,0.03419336]
[1738536873799,0.03781694,198.96,198.93,0.03419336]
[1738536873994,3.1787,199.03,198.93,0.03419336]
[1738536874196,9.562,199.09,198.93,0.03419336]
[1738536874397,0.03805456,198.96,198.93,0.03419336]
[1738536874600,9.562,199.09,198.89,42.96902904]
[1738536875399,42.96902904,199.14,198.93,42.96902904]
[1738536875600,42.96902904,199.18,198.97,42.96902904]
[1738536875799,0.0325621,199.05,199.02,0.03446371]
[1738536875998,6.4468,199.19,199.02,0.03446371]
[1738536876198,5.0218,199.18,199.02,5.0258]
[1738536876394,6.4468,199.19,199.02,5.0258]
[1738536876696,5.0214,199.2,199.04,5.0252]
[1738536876892,42.96902904,199.26,199.01,42.96902904]
[1738536877195,42.96902904,199.26,198.97,99.54]
[1738536877196,5.0258,199.03,198.97,99.54]
[1738536877407,42.96902904,199.1,198.84,6.52]
[1738536877591,42.96902904,199.06,198.98,0.03661512]
[1738536877798,42.96902904,199.02,198.76,42.96902904]
[1738536877998,42.96902904,199.1,198.76,42.96902904]
[1738536877999,42.96902904,198.96,198.76,42.96902904]
[1738536878199,8.9252,198.95,198.76,42.96902904]
[1738536878395,8.9252,198.95,198.76,48.00132904]
[1738536878697,8.9252,198.95,198.76,42.96902904]
[1738536878901,5.0279,198.94,198.76,42.96902904]
[1738536879204,0.03866548,198.87,198.84,0.03709757]
[1738536879698,8.9252,198.95,198.84,0.03709757]
[1738536880097,0.03574576,198.87,198.84,0.03709757]
[1738536880294,8.9301,198.99,198.84,0.03709757]
[1738536880502,8.9301,198.99,198.76,48.00132904]
[1738536880699,0.03701635,198.91,198.76,42.96902904]
[1738536881001,0.03701635,198.91,198.9,0.03277713]
[1738536881200,5.0257,199.03,198.9,0.03277713]
[1738536881400,9.1721,199.09,198.88,42.96902904]
[1738536881598,0.92351159,199.08,198.88,42.96902904]
[1738536881904,9.1721,199.09,198.95,0.03589806]
[1738536882318,42.96902904,199.24,199.01,42.96902904]
[1738536882602,1.00376411,199.25,199.05,42.96902904]
[1738536883107,5.0196,199.27,199.11,0.03273252]
[1738536883310,42.96902904,199.28,199.11,0.03273252]
[1738536883511,5.0209,199.22,199.05,42.96902904]
[1738536883707,42.96902904,199.24,199.01,42.96902904]
[1738536884103,0.92275916,199.23,199.01,42.96902904]
[1738536884308,42.96902904,199.24,199.11,0.03839018]
[1738536884606,0.03771746,199.14,199.11,0.03839018]
[1738536884809,42.96902904,199.24,199.01,42.96902904]
[1738536885111,0.03245731,199.14,199.11,0.03198724]
[1738536885499,42.96902904,199.28,199.05,42.96902904]
[1738536885701,42.96902904,199.39,199.17,42.96902904]
[1738536885906,0.92212581,199.38,199.17,42.96902904]
[1738536886109,5.0168,199.38,199.18,5.0217]
[1738536886308,0.03517273,199.3,199.25,42.96902904]
[1738536886508,0.03517273,199.3,199.26,0.03622882]
[1738536886718,2.9913,199.44,199.26,5.05592882]
[1738536886917,2.9913,199.44,199.26,0.03622882]
[1738536887112,9.3559,199.49,199.33,42.96902904]
[1738536887911,9.3559,199.49,199.33,49.64902904]
[1738536888112,0.03709902,199.43,199.39,0.03444483]
[1738536891015,50.3385714,199.79,199.42,42.96902904]
[1738536891212,0.92092988,199.64,199.42,42.96902904]
[1738536891613,5.0118,199.58,199.42,42.96902904]
[1738536891920,2.9496,199.69,199.42,42.96902904]
[1738536892116,5.0114,199.6,199.45,42.96902904]
[1738536892424,2.9496,199.69,199.49,42.96902904]
[1738536893216,2.9496,199.69,199.57,0.03560747]
[1738536893616,2.9496,199.69,199.49,42.96902904]
[1738536893920,5.0108,199.62,199.61,0.03167019]
[1738536894416,45.91862904,199.69,199.49,42.96902904]
[1738536894619,45.91862904,199.69,199.6,0.038184]
[1738536894620,0.92070006,199.68,199.6,0.038184]
[1738536894819,0.92070006,199.68,199.45,42.96902904]
[1738536895017,45.91862904,199.69,199.45,42.96902904]
[1738536895319,0.92084958,199.68,199.45,42.96902904]
[1738536896017,0.92084958,199.68,199.55,0.03252942]
[1738536896224,0.0377622,199.58,199.55,0.03252942]
[1738536896414,0.92084958,199.68,199.45,42.96902904]
[1738536896819,0.03263615,199.58,199.55,0.03383313]
[1738536897015,5.04453615,199.58,199.45,42.96902904]
[1738536897225,1.00160256,199.68,199.45,42.96902904]
[1738536897425,0.920726,199.67,199.45,42.96902904]
[1738536898122,1.00160256,199.68,199.48,5.0141]
[1738536898123,5.0111,199.61,199.48,5.0141]
[1738536898324,0.03169832,199.58,199.54,0.03671689]
[1738536898520,43.00072736,199.58,199.35,42.96902904]
[1738536898727,42.96902904,199.58,199.35,42.96902904]
[1738536899123,42.96902904,199.54,199.31,42.96902904]
[1738536899426,3.2418,199.53,199.31,42.96902904]
[1738536899724,3.2418,199.53,199.35,42.96902904]
[1738536899924,0.0334994,199.44,199.4,0.03224881]
[1738536900427,3.2418,199.53,199.35,42.96902904]
[1738536900826,0.03338025,199.44,199.4,0.0329437]
[1738536901318,3.2418,199.6,199.37,6.7]
[1738536901517,0.03400982,199.44,199.38,3.1914]
[1738536901729,0.03400982,199.44,199.4,0.03166051]
[1738536901919,3.2418,199.6,199.4,0.03166051]
[1738536902125,5.0138,199.5,199.4,0.03166051]
[1738536902325,0.03290885,199.44,199.24,6.7]
[1738536902522,0.03290885,199.44,199.28,42.96902904]
[1738536902824,0.03290885,199.44,199.23,3.1105]
[1738536902825,42.96902904,199.45,199.23,42.96902904]
[1738536903024,3.252,199.44,199.19,42.96902904]
[1738536903220,5.0178,199.34,199.19,42.96902904]
[1738536903422,42.96902904,199.29,199.03,42.96902904]
[1738536903628,3.252,199.28,199.03,42.96902904]
[1738536903825,12.2772,199.28,199.03,42.96902904]
[1738536904126,0.03301541,199.18,199.14,0.03809816]
[1738536904521,42.96902904,199.21,198.99,42.96902904]
[1738536905042,0.03536572,199.18,198.99,42.96902904]
[1738536905320,42.96902904,199.21,198.99,42.96902904]
[1738536905519,42.96902904,199.17,198.93,99.26]
[1738536905722,42.96902904,199.13,198.85,2.9677]
[1738536905922,42.96902904,199.13,198.92,42.96902904]
[1738536906326,0.0382445,199.02,198.99,0.03370192]
[1738536906826,42.96902904,199.09,198.88,42.96902904]
[1738536907227,0.03397308,199.02,198.99,0.03647824]
[1738536907932,42.96902904,199.05,198.99,0.03647824]
[1738536908131,0.0350352,199.02,198.99,0.03647824]
[1738536908432,0.0350352,199.02,198.9,5.0288]
[1738536908634,0.0350352,199.02,198.92,42.96902904]
[1738536908828,12.5695,199.12,198.99,0.03253113]
[1738536909228,12.5695,199.12,198.92,42.96902904]
[1738536909427,0.03664359,198.99,198.92,42.96902904]
[1738536909728,9.4483,199.12,198.92,42.96902904]
[1738536909934,9.4483,199.12,198.95,5.0275]
[1738536910232,9.4483,199.12,198.94,0.03444614]
[1738536910431,9.4483,199.12,198.92,42.96902904]
[1738536911233,0.03441621,199.04,199.0,0.03239228]
[1738536911734,3.1645,199.12,198.92,42.96902904]
[1738536911934,3.1645,199.12,198.88,42.96902904]
[1738536912131,0.03252084,199.04,199.0,0.03270324]
[1738536912731,42.96902904,199.09,198.88,42.96902904]
[1738536912929,5.0248,199.07,198.88,42.96902904]
[1738536913129,0.03365938,199.04,199.0,0.03207454]
[1738536913625,42.96902904,199.09,198.88,42.96902904]
[1738536913829,5.025,199.06,198.88,42.96902904]
[1738536914030,0.03310042,199.04,199.0,0.03276521]
[1738536914234,0.03310042,199.04,198.84,42.96902904]
[1738536914437,0.03310042,199.04,198.8,42.96902904]
[1738536914438,42.96902904,199.01,198.8,42.96902904]
[1738536914630,42.96902904,199.01,198.78,99.28]
[1738536914829,5.0282,198.93,198.78,99.28]
[1738536915032,42.96902904,198.97,198.78,99.28]
[1738536915533,5.9807,198.96,198.78,99.28]
[1738536915729,0.03686968,198.89,198.86,0.03719076]
[1738536916036,0.03686968,198.89,198.69,3.1837]
[1738536916037,5.0302,198.85,198.69,3.1837]
[1738536916328,42.96902904,198.88,198.67,1.00669451]
[1738536916534,42.96902904,198.84,198.67,1.00669451]
[1738536916830,42.96902904,198.84,198.63,102.6037]
[1738536917329,42.96902904,198.84,198.74,0.03440605]
[1738536917330,0.03450474,198.77,198.74,0.03440605]
[1738536917729,42.96902904,198.89,198.74,0.03440605]
[1738536918130,42.96902904,198.89,198.71,6.74]
[1738536918131,0.0322887,198.83,198.71,6.74]
[1738536918435,0.0322887,198.83,198.67,42.96902904]
[1738536918634,42.96902904,198.89,198.67,42.96902904]
[1738536918835,42.96902904,198.85,198.63,145.57272904]
[1738536919032,0.03732681,198.77,198.63,145.57272904]
[1738536919440,42.96902904,198.85,198.63,145.57272904]
[1738536919738,3.0973,198.87,198.63,145.57272904]
[1738536919936,0.03691765,198.76,198.72,0.03735092]
[1738536920336,42.96902904,198.88,198.67,42.96902904]
[1738536920638,42.96902904,198.92,198.67,42.96902904]
[1738536920837,5.029,198.9,198.73,5.0331]
[1738536921038,42.96902904,198.92,198.72,0.03296323]
[1738536921234,42.96902904,198.92,198.67,42.96902904]